[Event "Haarlemse Meesters 2019"]
[Site "Haarlem"]
[Date "2019.10.26"]
[Round "8.2"]
[White "Moucheroud, Jeremy"]
[Black "Tondivar, Babak"]
[Result "1/2-1/2"]
[ECO "C08"]
[WhiteElo "2294"]
[BlackElo "2324"]
[Annotator "NA"]
[PlyCount "52"]
[EventDate "2019.10.19"]
[EventType "tourn"]
[EventCountry "NED"]
[SourceTitle "playchess.com"]
[Source "ChessBase"]
[SourceQuality "1"]
[TimeControl "40/5400+30:1800+30"]

1. e4 {[%emt 0:00:00]} e6 {[%emt 0:00:00]} 2. d4 {[%emt 0:00:00]} d5 {[%emt 0:00:00]} 3. Nd2 {[%emt 0:00:00]} c5 {[%emt 0:00:00]} 4. exd5 {[%emt 0:00:00]} exd5 {[%emt 0:00:08]} 5. Ngf3 {[%emt 0:00:00]} a6 {[%emt 0:00:30]} 6. Be2 {[%emt 0:03:58]} Nf6 {[%emt 0:02:02]} 7. O-O {[%emt 0:01:27]} Be7 {[%emt 0:00:29]} 8. dxc5 {[%emt 0:02:59]} Bxc5 {[%emt 0:00:11]} 9. Nb3 {[%emt 0:01:29]} Ba7 $14 {[%emt 0:00:33]} 10. Bg5 {[%emt 0:08:00]} O-O {[%emt 0:00:31]} 11. c3 {[%emt 0:02:34]} Re8 {[%emt 0:00:47]} 12. Nfd4 {[%emt 0:04:02]} h6 {[%emt 0:09:09]} 13. Bh4 {[%emt 0:19:15]} Nc6 {[%emt 0:03:28]} 14. Re1 {[%emt 0:07:11]} g5 {[%emt 0:05:53]} 15. Bg3 {[%emt 0:01:27]} Ne4 {[%emt 0:00:26]} 16. Bh5 {[%emt 0:12:47]} Rf8 {[%emt 0:25:39]} 17. Bf3 {[%emt 0:11:46]} f5 {[%emt 0:06:09]} 18. Bxe4 {[%emt 0:00:21]} fxe4 {[%emt 0:02:18]} 19. Qh5 {[%emt 0:03:43]} Qf6 {[%emt 0:02:24]} 20. Rf1 {[%emt 0:03:50]} Bd7 {[%emt 0:06:40]} 21. h4 {[%emt 0:02:23]} Rae8 {[%emt 0:12:24]} 22. Nc2 {[%emt 0:04:38]} Be6 {[%emt 0:05:43]} 23. Ne3 {[%emt 0:01:25]} Bf7 {[%emt 0:02:06]} 24. Qg4 {[%emt 0:01:52]} Be6 {[%emt 0:01:42]} 25. Qh5 {[%emt 0:00:01]} Bf7 {[%emt 0:00:52]} 26. Qg4 {[%emt 0:00:01]} Be6 {[%emt 0:01:33]} 1/2-1/2

[Event "Haarlemse Meesters 2019"]
[Site "Haarlem"]
[Date "2019.10.26"]
[Round "8.3"]
[White "Lahaye, Rick"]
[Black "Lopez, Jasel"]
[Result "0-1"]
[ECO "D02"]
[WhiteElo "2414"]
[BlackElo "2409"]
[Annotator "NA"]
[PlyCount "112"]
[EventDate "2019.10.19"]
[EventType "tourn"]
[EventCountry "NED"]
[SourceTitle "playchess.com"]
[Source "ChessBase"]
[SourceQuality "1"]
[TimeControl "40/5400+30:1800+30"]

1. d4 {[%emt 0:00:00]} d5 {[%emt 0:00:34]} 2. Bf4 {[%emt 0:00:00]} Nf6 {[%emt 0:02:12]} 3. e3 {[%emt 0:00:43]} c5 {[%emt 0:00:25]} 4. c3 {[%emt 0:00:15]} e6 {[%emt 0:01:24]} 5. Nd2 {[%emt 0:00:32]} Bd6 {[%emt 0:00:52]} 6. Bg3 $11 {[%emt 0:08:13]} Qc7 {[%emt 0:02:03]} 7. Ngf3 {[%emt 0:01:21]} Nbd7 {[%emt 0:01:21]} 8. Bd3 {[%emt 0:01:14]} O-O {[%emt 0:02:33]} 9. O-O {[%emt 0:00:57]} Bxg3 {[%emt 0:00:19]} 10. hxg3 {[%emt 0:01:32]} e5 {[%emt 0:01:42]} 11. dxe5 {[%emt 0:00:47]} Nxe5 {[%emt 0:00:07]} 12. Nxe5 {[%emt 0:00:15]} Qxe5 {[%emt 0:00:07]} 13. Qa4 {[%emt 0:00:21]} Bd7 {[%emt 0:14:40]} 14. Qf4 {[%emt 0:00:06]} Qe7 {[%emt 0:02:53]} 15. Rad1 {[%emt 0:01:46]} Bc6 {[%emt 0:02:53]} 16. Rfe1 {[%emt 0:02:13]} Rfe8 {[%emt 0:00:17]} 17. g4 {[%emt 0:01:30]} Rad8 {[%emt 0:00:58]} 18. f3 {[%emt 0:00:40]} Rd6 {[%emt 0:04:07]} 19. Kf2 {[%emt 0:01:15]} Nd7 {[%emt 0:01:38]} 20. Bc2 {[%emt 0:16:11]} h6 {[%emt 0:10:17]} 21. Ne4 {[%emt 0:04:24]} Re6 {[%emt 0:01:01]} 22. Ng3 {[%emt 0:00:16]} Qg5 {[%emt 0:09:15]} 23. Qxg5 {[%emt 0:13:47]} hxg5 {[%emt 0:00:05]} 24. Bb3 {[%emt 0:01:12]} Re5 {[%emt 0:01:28]} 25. c4 {[%emt 0:17:26]} dxc4 {[%emt 0:01:33]} 26. Bxc4 {[%emt 0:00:25]} Nb6 {[%emt 0:06:44]} 27. b3 {[%emt 0:01:57]} g6 {[%emt 0:02:15]} 28. e4 {[%emt 0:00:23]} Nxc4 {[%emt 0:00:44]} 29. bxc4 {[%emt 0:00:01]} b5 {[%emt 0:00:12]} 30. Nf1 {[%emt 0:01:01]} b4 {[%emt 0:01:32]} 31. Ne3 {[%emt 0:02:18]} a5 {[%emt 0:00:19]} 32. Rd6 {[%emt 0:13:37]} R5e6 {[%emt 0:00:39]} 33. Red1 {[%emt 0:00:34]} a4 {[%emt 0:02:29]} 34. Rxe6 {[%emt 0:03:00]} Rxe6 {[%emt 0:00:07]} 35. a3 {[%emt 0:01:15]} Re7 {[%emt 0:10:35]} 36. Ke2 {[%emt 0:01:43]} Rb7 {[%emt 0:00:05]} 37. Ra1 {[%emt 0:02:16]} Kg7 {[%emt 0:01:49]} 38. Kd3 {[%emt 0:02:17]} Kf6 {[%emt 0:02:13]} 39. g3 {[%emt 0:00:04]} Ke5 {[%emt 0:00:17]} 40. Nd5 {[%emt 0:01:37]} Bxd5 {[%emt 0:01:52]} 41. cxd5 {[%emt 0:16:17]} bxa3 {[%emt 0:04:54]} 42. Kc4 {[%emt 0:02:22]} Rb3 {[%emt 0:00:27]} 43. f4+ {[%emt 0:02:08]} gxf4 {[%emt 0:02:37]} 44. gxf4+ {[%emt 0:00:06]} Kxf4 {[%emt 0:00:16]} 45. d6 {[%emt 0:00:43]} Ke5 {[%emt 0:02:51]} 46. Rd1 {[%emt 0:08:39]} Rb8 {[%emt 0:00:51]} 47. Kxc5 {[%emt 0:01:31]} a2 {[%emt 0:01:49]} 48. d7 {[%emt 0:00:23]} Rd8 {[%emt 0:00:17]} 49. Kc6 {[%emt 0:00:06]} Ke6 {[%emt 0:00:08]} 50. Rd6+ {[%emt 0:00:30]} Ke7 {[%emt 0:00:24]} 51. Rd1 {[%emt 0:00:09]} g5 {[%emt 0:01:28]} 52. e5 {[%emt 0:00:39]} a3 {[%emt 0:00:06]} 53. Ra1 {[%emt 0:02:03]} Rxd7 {[%emt 0:00:05]} 54. Rxa2 {[%emt 0:00:03]} Rd3 {[%emt 0:00:06]} 55. Rf2 {[%emt 0:00:09]} Rg3 {[%emt 0:00:35]} 56. Kd5 {[%emt 0:00:52]} Rxg4 {[%emt 0:00:08]} 0-1

[Event "Haarlemse Meesters 2019"]
[Site "Haarlem"]
[Date "2019.10.26"]
[Round "8.4"]
[White "Gijswijt, Bart"]
[Black "Welling, Gerard"]
[Result "1/2-1/2"]
[ECO "E11"]
[WhiteElo "2387"]
[BlackElo "2302"]
[Annotator "NA"]
[PlyCount "73"]
[EventDate "2019.10.19"]
[EventType "tourn"]
[EventCountry "NED"]
[SourceTitle "playchess.com"]
[Source "ChessBase"]
[SourceQuality "1"]
[TimeControl "40/5400+30:1800+30"]

1. d4 {[%emt 0:00:00]} e6 {[%emt 0:00:00]} 2. c4 {[%emt 0:00:00]} Nf6 {[%emt 0:00:00]} 3. Nf3 {[%emt 0:00:00]} Bb4+ {[%emt 0:00:12]} 4. Nbd2 {[%emt 0:00:31]} O-O {[%emt 0:00:11]} 5. a3 {[%emt 0:00:45]} Be7 {[%emt 0:00:07]} 6. g3 $11 {[%emt 0:03:19]} d5 {[%emt 0:14:24]} 7. Bg2 {[%emt 0:06:04]} a5 {[%emt 0:06:22]} 8. b3 {[%emt 0:08:43]} c5 {[%emt 0:02:46]} 9. cxd5 {[%emt 0:06:40]} exd5 {[%emt 0:00:15]} 10. O-O {[%emt 0:01:02]} Nc6 {[%emt 0:00:08]} 11. Bb2 {[%emt 0:01:10]} Ne4 {[%emt 0:05:19]} 12. dxc5 {[%emt 0:05:50]} Bxc5 {[%emt 0:00:34]} 13. e3 {[%emt 0:04:25]} Qe7 {[%emt 0:04:45]} 14. Nd4 {[%emt 0:13:52]} Bxd4 {[%emt 0:13:37]} 15. exd4 {[%emt 0:00:51]} Nxd2 {[%emt 0:00:19]} 16. Qxd2 {[%emt 0:00:12]} Be6 {[%emt 0:00:13]} 17. Rfe1 {[%emt 0:04:00]} Qd7 {[%emt 0:00:38]} 18. Rac1 {[%emt 0:02:31]} Bh3 {[%emt 0:02:35]} 19. Bf3 {[%emt 0:05:59]} Bg4 {[%emt 0:00:30]} 20. Bh1 {[%emt 0:02:55]} Rfe8 {[%emt 0:00:40]} 21. Qf4 {[%emt 0:03:05]} Rxe1+ {[%emt 0:02:51]} 22. Rxe1 {[%emt 0:00:02]} Be6 {[%emt 0:00:42]} 23. h4 {[%emt 0:02:25]} h6 {[%emt 0:03:57]} 24. Bf3 {[%emt 0:01:56]} Rc8 {[%emt 0:04:12]} 25. g4 {[%emt 0:04:40]} Qc7 {[%emt 0:01:55]} 26. Qd2 {[%emt 0:01:59]} Qd7 {[%emt 0:00:08]} 27. g5 {[%emt 0:01:25]} hxg5 {[%emt 0:01:45]} 28. hxg5 {[%emt 0:01:47]} Bg4 {[%emt 0:04:51]} 29. Qf4 {[%emt 0:01:53]} Bxf3 {[%emt 0:00:18]} 30. Qxf3 {[%emt 0:00:02]} Re8 {[%emt 0:01:24]} 31. Rxe8+ {[%emt 0:02:30]} Qxe8 {[%emt 0:00:18]} 32. Qxd5 {[%emt 0:00:54]} Qe2 {[%emt 0:04:00]} 33. Bc3 {[%emt 0:03:50]} Qg4+ {[%emt 0:01:10]} 34. Kh2 {[%emt 0:00:27]} Qh4+ {[%emt 0:00:14]} 35. Kg2 {[%emt 0:00:10]} Qg4+ {[%emt 0:00:06]} 36. Kh2 {[%emt 0:00:07]} Qh4+ {[%emt 0:00:16]} 37. Kg2 {[%emt 0:01:20]} 1/2-1/2

[Event "Haarlemse Meesters 2019"]
[Site "Haarlem"]
[Date "2019.10.26"]
[Round "8.5"]
[White "Hainke, Guntram"]
[Black "Peelen, Piet"]
[Result "0-1"]
[ECO "E97"]
[WhiteElo "2365"]
[BlackElo "2348"]
[Annotator "NA"]
[PlyCount "146"]
[EventDate "2019.10.19"]
[EventType "tourn"]
[EventCountry "NED"]
[SourceTitle "playchess.com"]
[Source "ChessBase"]
[SourceQuality "1"]
[TimeControl "40/5400+30:1800+30"]

1. d4 {[%emt 0:00:00]} Nf6 {[%emt 0:00:00]} 2. c4 {[%emt 0:00:05]} g6 {[%emt 0:00:00]} 3. Nc3 {[%emt 0:00:46]} Bg7 {[%emt 0:00:04]} 4. e4 {[%emt 0:03:40]} d6 {[%emt 0:00:23]} 5. Be2 {[%emt 0:06:25]} O-O {[%emt 0:00:31]} 6. Nf3 $14 {[%emt 0:00:13]} e5 {[%emt 0:00:24]} 7. O-O {[%emt 0:00:39]} Nc6 {[%emt 0:01:28]} 8. d5 {[%emt 0:05:12]} Ne7 {[%emt 0:00:15]} 9. b4 {[%emt 0:00:49]} a5 {[%emt 0:00:33]} 10. bxa5 {[%emt 0:00:30]} Rxa5 {[%emt 0:03:04]} 11. a4 {[%emt 0:00:43]} c5 {[%emt 0:04:27]} 12. Nd2 {[%emt 0:10:24]} Ne8 {[%emt 0:07:29]} 13. Nb3 {[%emt 0:06:45]} Ra6 {[%emt 0:00:20]} 14. Be3 {[%emt 0:00:45]} f5 {[%emt 0:02:56]} 15. f3 {[%emt 0:01:54]} b6 {[%emt 0:24:16]} 16. Qc2 {[%emt 0:18:26]} Nf6 {[%emt 0:01:48]} 17. Nb5 {[%emt 0:03:02]} Nh5 {[%emt 0:22:24]} 18. Ra3 {[%emt 0:04:01]} Nf4 {[%emt 0:04:09]} 19. Rfa1 {[%emt 0:01:39]} Bh6 {[%emt 0:08:56]} 20. Kh1 {[%emt 0:01:48]} fxe4 {[%emt 0:05:27]} 21. fxe4 {[%emt 0:00:17]} Nxe2 {[%emt 0:00:58]} 22. Qxe2 {[%emt 0:00:57]} Bxe3 {[%emt 0:00:31]} 23. Qxe3 {[%emt 0:00:07]} Kg7 {[%emt 0:00:58]} 24. a5 {[%emt 0:17:18]} Ng8 {[%emt 0:00:45]} 25. h3 {[%emt 0:02:53]} Nf6 {[%emt 0:05:40]} 26. axb6 {[%emt 0:04:50]} Rxa3 {[%emt 0:01:24]} 27. Rxa3 {[%emt 0:00:07]} Qxb6 {[%emt 0:00:20]} 28. Nd2 {[%emt 0:03:50]} Bd7 {[%emt 0:00:34]} 29. Qc3 {[%emt 0:01:44]} Bxb5 {[%emt 0:03:08]} 30. Rb3 {[%emt 0:00:17]} Qd8 {[%emt 0:01:01]} 31. cxb5 {[%emt 0:00:20]} Ng4 {[%emt 0:00:38]} 32. b6 {[%emt 0:03:58]} Qh4 {[%emt 0:00:34]} 33. Nf3 {[%emt 0:00:18]} Nf2+ {[%emt 0:00:17]} 34. Kg1 {[%emt 0:00:47]} Qg3 {[%emt 0:00:18]} 35. Qe1 {[%emt 0:00:49]} c4 {[%emt 0:00:24]} 36. Re3 {[%emt 0:00:27]} Nxh3+ {[%emt 0:00:14]} 37. Kf1 {[%emt 0:00:27]} Qg4 {[%emt 0:01:18]} 38. Qb4 {[%emt 0:01:03]} Nf4 {[%emt 0:00:15]} 39. Qd2 {[%emt 0:00:12]} Rb8 {[%emt 0:00:30]} 40. Qb2 {[%emt 0:00:56]} Kh6 {[%emt 0:00:46]} 41. Ne1 {[%emt 0:04:02]} Qd1 {[%emt 0:14:23]} 42. Qf2 {[%emt 0:07:24]} Qh5 {[%emt 0:07:09]} 43. Qb2 {[%emt 0:05:44]} Qh1+ {[%emt 0:04:29]} 44. Kf2 {[%emt 0:00:11]} Qh4+ {[%emt 0:00:15]} 45. Kf1 {[%emt 0:00:29]} Qd8 {[%emt 0:00:25]} 46. g3 {[%emt 0:01:57]} Nh5 {[%emt 0:01:05]} 47. Qc1 {[%emt 0:00:17]} Kg7 {[%emt 0:01:03]} 48. Qxc4 {[%emt 0:01:36]} Qxb6 {[%emt 0:01:12]} 49. Qc3 {[%emt 0:02:00]} Nf6 {[%emt 0:01:08]} 50. Re2 {[%emt 0:02:15]} Rf8 {[%emt 0:02:35]} 51. Nf3 {[%emt 0:00:36]} Nd7 {[%emt 0:01:12]} 52. Kg2 {[%emt 0:00:22]} Nc5 {[%emt 0:00:25]} 53. Rb2 {[%emt 0:02:56]} Qa7 {[%emt 0:01:01]} 54. Rb4 {[%emt 0:03:14]} Qa2+ {[%emt 0:00:33]} 55. Rb2 {[%emt 0:02:02]} Qa7 {[%emt 0:00:34]} 56. Rb4 {[%emt 0:01:16]} h6 {[%emt 0:00:29]} 57. Rc4 {[%emt 0:00:52]} Qa2+ {[%emt 0:00:30]} 58. Nd2 {[%emt 0:00:21]} Kh7 {[%emt 0:00:25]} 59. Rb4 {[%emt 0:00:54]} Rf7 {[%emt 0:00:16]} 60. Rb2 {[%emt 0:00:53]} Qa6 {[%emt 0:00:31]} 61. Qe3 {[%emt 0:00:37]} Rb7 {[%emt 0:00:43]} 62. Rxb7+ {[%emt 0:00:32]} Qxb7 {[%emt 0:00:03]} 63. Nc4 {[%emt 0:00:16]} Qe7 {[%emt 0:00:27]} 64. Qe2 {[%emt 0:00:29]} Kg7 {[%emt 0:00:27]} 65. Qg4 {[%emt 0:00:34]} h5 {[%emt 0:00:13]} 66. Qf3 {[%emt 0:00:23]} Qc7 {[%emt 0:00:28]} 67. Qe3 {[%emt 0:01:15]} Nd7 {[%emt 0:00:21]} 68. Qb3 {[%emt 0:00:26]} Nc5 {[%emt 0:00:36]} 69. Qf3 {[%emt 0:00:06]} Nd7 {[%emt 0:00:51]} 70. Qb3 {[%emt 0:00:03]} Nf6 {[%emt 0:00:11]} 71. Kf3 {[%emt 0:00:23]} Qd7 {[%emt 0:00:44]} 72. Ne3 {[%emt 0:00:26]} Qf7 {[%emt 0:00:15]} 73. Qb6 {[%emt 0:01:34]} Nxd5+ {[%emt 0:00:19]} 0-1

[Event "Haarlemse Meesters 2019"]
[Site "Haarlem"]
[Date "2019.10.27"]
[Round "9.1"]
[White "Lopez, Jasel"]
[Black "Moucheroud, Jeremy"]
[Result "1/2-1/2"]
[ECO "D63"]
[WhiteElo "2409"]
[BlackElo "2294"]
[Annotator "NA"]
[PlyCount "29"]
[EventDate "2019.10.19"]
[EventType "tourn"]
[EventCountry "NED"]
[SourceTitle "playchess.com"]
[Source "ChessBase"]
[SourceQuality "1"]
[TimeControl "40/5400+30:1800+30"]

1. d4 {[%emt 0:00:00]} d5 {[%emt 0:00:00]} 2. Nf3 {[%emt 0:00:00]} Nf6 {[%emt 0:00:00]} 3. c4 {[%emt 0:01:15]} e6 {[%emt 0:00:00]} 4. Nc3 {[%emt 0:00:14]} Be7 {[%emt 0:00:29]} 5. Bg5 {[%emt 0:00:18]} O-O {[%emt 0:00:54]} 6. e3 {[%emt 0:00:43]} Nbd7 {[%emt 0:00:55]} 7. Rc1 {[%emt 0:01:01]} h6 {[%emt 0:00:35]} 8. Bh4 {[%emt 0:00:10]} c5 {[%emt 0:05:11]} 9. cxd5 {[%emt 0:01:02]} Nxd5 {[%emt 0:00:13]} 10. Bxe7 {[%emt 0:00:53]} Nxe7 {[%emt 0:00:15]} 11. Be2 {[%emt 0:00:24]} cxd4 {[%emt 0:03:25]} 12. Nxd4 {[%emt 0:00:35]} Nf6 {[%emt 0:02:04]} 13. O-O {[%emt 0:03:33]} Bd7 {[%emt 0:02:40]} 14. Bf3 {[%emt 0:00:24]} Qb6 $11 {[%emt 0:16:30]} 15. Qb3 {[%emt 0:00:18]} 1/2-1/2

[Event "Haarlemse Meesters 2019"]
[Site "Haarlem"]
[Date "2019.10.27"]
[Round "9.2"]
[White "Peelen, Piet"]
[Black "De Ruiter, Danny"]
[Result "1-0"]
[ECO "D30"]
[WhiteElo "2348"]
[BlackElo "2268"]
[Annotator "NA"]
[PlyCount "139"]
[EventDate "2019.10.19"]
[EventType "tourn"]
[EventCountry "NED"]
[SourceTitle "playchess.com"]
[Source "ChessBase"]
[SourceQuality "1"]
[TimeControl "40/5400+30:1800+30"]

1. d4 {[%emt 0:00:00]} d5 {[%emt 0:00:00]} 2. c4 {[%emt 0:00:00]} c6 {[%emt 0:00:00]} 3. Nf3 {[%emt 0:00:32]} Nf6 {[%emt 0:00:00]} 4. e3 {[%emt 0:00:42]} e6 {[%emt 0:03:14]} 5. Bd3 {[%emt 0:03:25]} a6 {[%emt 0:01:41]} 6. b3 {[%emt 0:10:58]} Bb4+ {[%emt 0:03:53]} 7. Nbd2 {[%emt 0:07:01]} Nbd7 {[%emt 0:05:16]} 8. O-O {[%emt 0:02:29]} O-O $14 {[%emt 0:23:20]} 9. Bb2 {[%emt 0:07:38]} Qe7 {[%emt 0:02:28]} 10. Qc2 {[%emt 0:06:17]} h6 {[%emt 0:03:41]} 11. e4 {[%emt 0:09:59]} dxe4 {[%emt 0:01:15]} 12. Nxe4 {[%emt 0:00:10]} Nxe4 {[%emt 0:04:16]} 13. Bxe4 {[%emt 0:00:01]} Ba3 {[%emt 0:00:07]} 14. Bc3 {[%emt 0:14:08]} Bb4 {[%emt 0:04:05]} 15. Bb2 {[%emt 0:02:31]} Ba3 {[%emt 0:00:08]} 16. Bc3 {[%emt 0:00:10]} Bb4 {[%emt 0:00:06]} 17. c5 {[%emt 0:03:00]} Bxc3 {[%emt 0:01:25]} 18. Qxc3 {[%emt 0:00:01]} Rd8 {[%emt 0:04:27]} 19. Rfe1 {[%emt 0:00:48]} Nf8 {[%emt 0:03:09]} 20. Rad1 {[%emt 0:00:57]} Bd7 {[%emt 0:00:27]} 21. Ne5 {[%emt 0:05:41]} Be8 {[%emt 0:01:07]} 22. b4 {[%emt 0:00:43]} f6 {[%emt 0:02:53]} 23. Nc4 {[%emt 0:00:25]} Bg6 {[%emt 0:01:11]} 24. Qg3 {[%emt 0:10:43]} Bxe4 {[%emt 0:01:08]} 25. Rxe4 {[%emt 0:00:01]} Rab8 {[%emt 0:03:41]} 26. h4 {[%emt 0:01:13]} Qf7 {[%emt 0:01:40]} 27. Nd6 {[%emt 0:01:05]} Qh5 {[%emt 0:00:20]} 28. Rde1 {[%emt 0:00:50]} Rd7 {[%emt 0:01:00]} 29. a3 {[%emt 0:08:56]} Rbd8 {[%emt 0:03:08]} 30. Qb3 {[%emt 0:00:25]} Kh7 {[%emt 0:03:21]} 31. Qc2 {[%emt 0:00:20]} Kg8 {[%emt 0:00:48]} 32. g3 {[%emt 0:00:20]} Qd5 {[%emt 0:01:04]} 33. Qc3 {[%emt 0:01:03]} Re7 {[%emt 0:02:54]} 34. Qf3 {[%emt 0:00:24]} f5 {[%emt 0:09:17]} 35. R4e3 {[%emt 0:00:37]} Qxf3 {[%emt 0:00:12]} 36. Rxf3 {[%emt 0:00:01]} Red7 {[%emt 0:00:11]} 37. Rfe3 {[%emt 0:01:15]} Rxd6 {[%emt 0:03:13]} 38. cxd6 {[%emt 0:00:01]} Rxd6 {[%emt 0:00:08]} 39. Rd1 {[%emt 0:00:30]} Nd7 {[%emt 0:00:01]} 40. Kf1 {[%emt 0:00:35]} Kf7 {[%emt 0:00:19]} 41. Ke2 {[%emt 0:33:43]} Nf6 {[%emt 0:32:21]} 42. Rb3 {[%emt 0:00:00]} Ne4 {[%emt 0:00:00]} 43. Ke3 {[%emt 0:00:00]} Rd5 {[%emt 0:00:00]} 44. Rdd3 {[%emt 0:00:00]} Ke7 {[%emt 0:00:00]} 45. Rb2 {[%emt 0:00:00]} Rd8 {[%emt 0:00:00]} 46. Rc2 {[%emt 0:00:00]} Rd5 {[%emt 0:00:00]} 47. Rb3 {[%emt 0:00:00]} Nf6 {[%emt 0:00:00]} 48. Rd3 {[%emt 0:00:00]} Ng4+ {[%emt 0:00:00]} 49. Ke2 {[%emt 0:00:00]} Nf6 {[%emt 0:00:00]} 50. Rc5 {[%emt 0:00:00]} Rd8 {[%emt 0:00:00]} 51. a4 {[%emt 0:00:00]} Ne4 {[%emt 0:00:00]} 52. Re5 {[%emt 0:00:47]} Nd6 {[%emt 0:00:00]} 53. Rde3 {[%emt 0:03:34]} Ne4 {[%emt 0:00:00]} 54. f3 {[%emt 0:00:10]} Nxg3+ {[%emt 0:00:00]} 55. Kf2 {[%emt 0:00:07]} f4 {[%emt 0:00:00]} 56. Rxe6+ {[%emt 0:00:03]} Kf7 {[%emt 0:00:00]} 57. Re7+ {[%emt 0:00:18]} Kf8 {[%emt 0:00:00]} 58. R3e5 {[%emt 0:01:05]} b5 {[%emt 0:01:53]} 59. d5 {[%emt 0:01:27]} Rxd5 {[%emt 0:01:46]} 60. Re8+ {[%emt 0:00:27]} Kf7 {[%emt 0:00:01]} 61. Rxd5 {[%emt 0:00:16]} cxd5 {[%emt 0:00:27]} 62. Re5 {[%emt 0:00:51]} d4 {[%emt 0:01:31]} 63. axb5 {[%emt 0:00:52]} axb5 {[%emt 0:00:02]} 64. Rd5 {[%emt 0:00:20]} Ke6 {[%emt 0:00:02]} 65. Rxd4 {[%emt 0:00:09]} Ke5 {[%emt 0:01:20]} 66. Rd7 {[%emt 0:01:02]} Nf5 {[%emt 0:00:40]} 67. h5 {[%emt 0:00:37]} Kf6 {[%emt 0:00:02]} 68. Rd5 {[%emt 0:00:15]} Ke6 {[%emt 0:00:48]} 69. Rxb5 {[%emt 0:00:12]} Nd6 {[%emt 0:00:02]} 70. Rc5 {[%emt 0:00:18]} 1-0

[Event "Haarlemse Meesters 2019"]
[Site "Haarlem"]
[Date "2019.10.27"]
[Round "9.3"]
[White "De Strycker, Nathan"]
[Black "Gijswijt, Bart"]
[Result "1-0"]
[ECO "A13"]
[WhiteElo "2302"]
[BlackElo "2387"]
[Annotator "NA"]
[PlyCount "77"]
[EventDate "2019.10.19"]
[EventType "tourn"]
[EventCountry "NED"]
[SourceTitle "playchess.com"]
[Source "ChessBase"]
[SourceQuality "1"]
[TimeControl "40/5400+30:1800+30"]

1. c4 {[%emt 0:00:00]} e6 {[%emt 0:00:08]} 2. g3 {[%emt 0:00:00]} Nf6 {[%emt 0:00:20]} 3. Bg2 {[%emt 0:00:00]} d5 {[%emt 0:00:12]} 4. Nf3 {[%emt 0:00:00]} dxc4 {[%emt 0:00:18]} 5. Qa4+ {[%emt 0:02:52]} Bd7 {[%emt 0:00:11]} 6. Qxc4 {[%emt 0:00:16]} c5 {[%emt 0:00:11]} 7. Ne5 {[%emt 0:05:54]} Qc8 {[%emt 0:00:48]} 8. Nxd7 {[%emt 0:02:52]} Qxd7 {[%emt 0:00:34]} 9. d3 {[%emt 0:03:55]} Nc6 {[%emt 0:03:36]} 10. O-O {[%emt 0:01:19]} Nd4 {[%emt 0:10:20]} 11. Re1 {[%emt 0:03:50]} b5 {[%emt 0:07:24]} 12. Qc3 {[%emt 0:01:50]} Rc8 {[%emt 0:07:05]} 13. e3 $11 {[%emt 0:02:52]} Nc6 {[%emt 0:02:19]} 14. Rd1 {[%emt 0:07:38]} Be7 {[%emt 0:07:23]} 15. a4 {[%emt 0:05:33]} a6 {[%emt 0:05:36]} 16. axb5 {[%emt 0:11:12]} axb5 {[%emt 0:00:11]} 17. Bxc6 {[%emt 0:06:53]} Qxc6 {[%emt 0:01:09]} 18. Ra7 {[%emt 0:01:47]} h5 {[%emt 0:20:01]} 19. e4 {[%emt 0:00:46]} h4 {[%emt 0:02:18]} 20. Nd2 {[%emt 0:08:27]} hxg3 {[%emt 0:00:47]} 21. hxg3 {[%emt 0:00:05]} c4 {[%emt 0:03:43]} 22. Nf3 {[%emt 0:02:19]} Bc5 {[%emt 0:03:08]} 23. Rxf7 {[%emt 0:00:48]} Bxf2+ {[%emt 0:07:34]} 24. Kg2 {[%emt 0:00:06]} Bb6 {[%emt 0:01:47]} 25. Rxf6 {[%emt 0:04:59]} gxf6 {[%emt 0:01:25]} 26. Qxf6 {[%emt 0:00:57]} Rf8 {[%emt 0:00:16]} 27. Qg6+ {[%emt 0:04:54]} Kd8 {[%emt 0:00:01]} 28. Qg7 {[%emt 0:04:16]} Ke8 {[%emt 0:01:38]} 29. dxc4 {[%emt 0:06:42]} Qc7 {[%emt 0:02:51]} 30. Qg4 {[%emt 0:03:29]} Qxc4 {[%emt 0:02:39]} 31. Qh5+ {[%emt 0:02:08]} Rf7 {[%emt 0:00:23]} 32. Qh8+ {[%emt 0:00:30]} Rf8 {[%emt 0:00:20]} 33. Qh5+ {[%emt 0:00:04]} Rf7 {[%emt 0:00:06]} 34. Ng5 {[%emt 0:06:31]} Rcc7 {[%emt 0:00:24]} 35. Bf4 {[%emt 0:00:40]} e5 {[%emt 0:01:54]} 36. Qh8+ {[%emt 0:00:25]} Rf8 {[%emt 0:00:36]} 37. Qxe5+ {[%emt 0:00:10]} Re7 {[%emt 0:00:00]} 38. Qb8+ {[%emt 0:00:00]} Bd8 {[%emt 0:00:00]} 39. Rxd8# {[%emt 0:00:00]} 1-0

[Event "Haarlemse Meesters 2019"]
[Site "Haarlem"]
[Date "2019.10.27"]
[Round "9.4"]
[White "Tondivar, Babak"]
[Black "Hainke, Guntram"]
[Result "1-0"]
[ECO "A12"]
[WhiteElo "2324"]
[BlackElo "2365"]
[Annotator "NA"]
[PlyCount "77"]
[EventDate "2019.10.19"]
[EventType "tourn"]
[EventCountry "NED"]
[SourceTitle "playchess.com"]
[Source "ChessBase"]
[SourceQuality "1"]
[TimeControl "40/5400+30:1800+30"]

1. g3 {[%emt 0:00:00]} d5 {[%emt 0:00:00]} 2. Nf3 {[%emt 0:00:00]} Nf6 {[%emt 0:00:00]} 3. Bg2 {[%emt 0:00:00]} c6 {[%emt 0:00:12]} 4. b3 {[%emt 0:00:20]} Bg4 {[%emt 0:00:40]} 5. Bb2 {[%emt 0:00:16]} Nbd7 {[%emt 0:02:40]} 6. d3 {[%emt 0:01:28]} e6 {[%emt 0:00:30]} 7. O-O {[%emt 0:00:15]} Bd6 {[%emt 0:04:13]} 8. Nbd2 {[%emt 0:00:23]} O-O {[%emt 0:01:24]} 9. c4 {[%emt 0:00:21]} Qe7 {[%emt 0:00:47]} 10. a3 {[%emt 0:01:20]} Rfe8 {[%emt 0:04:17]} 11. h3 {[%emt 0:01:19]} Bh5 {[%emt 0:03:22]} 12. Qc2 {[%emt 0:03:09]} h6 {[%emt 0:02:39]} 13. Rfe1 {[%emt 0:02:04]} Bg6 {[%emt 0:13:08]} 14. b4 {[%emt 0:05:29]} a5 {[%emt 0:04:32]} 15. c5 {[%emt 0:00:46]} Bc7 $11 {[%emt 0:00:17]} 16. e4 {[%emt 0:04:40]} e5 {[%emt 0:05:42]} 17. Nh4 {[%emt 0:10:41]} Bh7 {[%emt 0:00:36]} 18. Nf1 {[%emt 0:16:15]} d4 {[%emt 0:04:45]} 19. Nd2 {[%emt 0:01:08]} Nf8 {[%emt 0:00:18]} 20. Nc4 {[%emt 0:01:59]} Ne6 {[%emt 0:00:31]} 21. Nf5 {[%emt 0:02:44]} Qd8 {[%emt 0:04:00]} 22. Nfd6 {[%emt 0:04:38]} Bxd6 {[%emt 0:00:48]} 23. Nxd6 {[%emt 0:00:09]} Re7 {[%emt 0:00:19]} 24. Nc4 {[%emt 0:07:29]} Nd7 {[%emt 0:00:42]} 25. h4 {[%emt 0:03:31]} Qc7 {[%emt 0:03:45]} 26. Bh3 {[%emt 0:01:07]} axb4 {[%emt 0:05:22]} 27. axb4 {[%emt 0:00:10]} Ree8 {[%emt 0:00:23]} 28. Nd6 {[%emt 0:01:00]} Reb8 {[%emt 0:00:27]} 29. Bxe6 {[%emt 0:06:53]} fxe6 {[%emt 0:00:03]} 30. f4 {[%emt 0:04:39]} b6 {[%emt 0:03:22]} 31. Qc4 {[%emt 0:01:03]} Nf8 {[%emt 0:01:43]} 32. fxe5 {[%emt 0:00:52]} bxc5 {[%emt 0:02:52]} 33. Qxc5 {[%emt 0:03:31]} Rxa1 {[%emt 0:00:39]} 34. Rxa1 {[%emt 0:01:14]} Qb6 {[%emt 0:00:15]} 35. Qxb6 {[%emt 0:01:29]} Rxb6 {[%emt 0:00:02]} 36. Ra4 {[%emt 0:00:31]} c5 {[%emt 0:00:28]} 37. b5 {[%emt 0:03:28]} Bg6 {[%emt 0:01:00]} 38. Ra8 {[%emt 0:02:57]} Bh5 {[%emt 0:00:51]} 39. Ba3 {[%emt 0:00:32]} 1-0